[Event "Live Chess"]
[Site "Chess.com"]
[Date "2023.05.21"]
[Round "-"]
[White "elephantgerrald"]
[Black "Ian-Morley"]
[Result "0-1"]
[WhiteElo "662"]
[BlackElo "1079"]
[TimeControl "300"]
[EndTime "7:12:41 PDT"]
[Termination "Ian-Morley won by checkmate"]

1. e4 {[%clk 0:04:58.5]} 1... d5 {[%clk 0:04:58.9]} 2. exd5 {[%clk 0:04:57.5]}
2... Qxd5 {[%clk 0:04:58.6]} 3. c4 {[%clk 0:04:55.5]} 3... Qd8 {[%clk
0:04:56.7]} 4. d4 {[%clk 0:04:54]} 4... Nf6 {[%clk 0:04:56]} 5. Bd3 {[%clk
0:04:51.5]} 5... b6 {[%clk 0:04:53.7]} 6. Nc3 {[%clk 0:04:49.9]} 6... Bb7 {[%clk
0:04:52.8]} 7. Nf3 {[%clk 0:04:48.4]} 7... e6 {[%clk 0:04:52.4]} 8. O-O {[%clk
0:04:47.1]} 8... Nbd7 {[%clk 0:04:52]} 9. b3 {[%clk 0:04:45.5]} 9... c6 {[%clk
0:04:51.3]} 10. Bb2 {[%clk 0:04:44.2]} 10... Bb4 {[%clk 0:04:50.5]} 11. a3
{[%clk 0:04:41.7]} 11... Bxc3 {[%clk 0:04:47.7]} 12. Bxc3 {[%clk 0:04:40.5]}
12... Qc7 {[%clk 0:04:46.1]} 13. Re1 {[%clk 0:04:35.3]} 13... O-O-O {[%clk
0:04:45.1]} 14. Ne5 {[%clk 0:04:32.6]} 14... Nxe5 {[%clk 0:04:43.8]} 15. dxe5
{[%clk 0:04:30.5]} 15... Nd7 {[%clk 0:04:40.3]} 16. Qg4 {[%clk 0:04:23.5]} 16...
g6 {[%clk 0:04:38.7]} 17. Bb4 {[%clk 0:04:11.9]} 17... Nxe5 {[%clk 0:04:37.1]}
18. Qf4 {[%clk 0:04:03.3]} 18... Nxd3 {[%clk 0:04:34.9]} 19. Qxc7+ {[%clk
0:04:02]} 19... Kxc7 {[%clk 0:04:34]} 20. Red1 {[%clk 0:04:00.3]} 20... Nxb4
{[%clk 0:04:32]} 21. Rxd8 {[%clk 0:03:57.9]} 21... Rxd8 {[%clk 0:04:31.5]} 22.
axb4 {[%clk 0:03:56.4]} 22... c5 {[%clk 0:04:31.1]} 23. Rxa7 {[%clk 0:03:54.7]}
23... Kb8 {[%clk 0:04:28.8]} 24. Ra1 {[%clk 0:03:52.1]} 24... Rd2 {[%clk
0:04:20.8]} 25. h3 {[%clk 0:03:47]} 25... cxb4 {[%clk 0:04:14.6]} 26. Kf1 {[%clk
0:03:36.9]} 26... Kc7 {[%clk 0:04:14]} 27. g4 {[%clk 0:03:34.2]} 27... Rb2
{[%clk 0:04:12.8]} 28. Ra4 {[%clk 0:03:20.4]} 28... Rxb3 {[%clk 0:04:10.3]} 29.
h4 {[%clk 0:02:58.1]} 29... f5 {[%clk 0:04:09.2]} 30. gxf5 {[%clk 0:02:50.2]}
30... exf5 {[%clk 0:04:08.1]} 31. f4 {[%clk 0:02:47.5]} 31... Kd6 {[%clk
0:04:07.1]} 32. Ke2 {[%clk 0:02:45.8]} 32... Kc5 {[%clk 0:04:06.2]} 33. Kd2
{[%clk 0:02:42]} 33... Kxc4 {[%clk 0:04:04.9]} 34. Kc2 {[%clk 0:02:40]} 34...
Rh3 {[%clk 0:04:03.6]} 35. Ra7 {[%clk 0:02:35.9]} 35... Rh2+ {[%clk 0:04:02.5]}
36. Kc1 {[%clk 0:02:33.4]} 36... Kc3 {[%clk 0:04:01.1]} 37. Kd1 {[%clk
0:02:21.3]} 37... Bf3+ {[%clk 0:03:58.3]} 38. Ke1 {[%clk 0:02:19.1]} 38... Kd3
{[%clk 0:03:55.3]} 39. Rd7+ {[%clk 0:02:15.7]} 39... Kc4 {[%clk 0:03:54.1]} 40.
Kf1 {[%clk 0:02:08]} 40... b3 {[%clk 0:03:52.7]} 41. Kg1 {[%clk 0:02:03.8]}
41... Ra2 {[%clk 0:03:47.2]} 42. Rd2 {[%clk 0:02:01.4]} 42... Rxd2 {[%clk
0:03:42.8]} 43. Kf1 {[%clk 0:01:59.9]} 43... b2 {[%clk 0:03:41.8]} 44. Ke1
{[%clk 0:01:56.5]} 44... Rh2 {[%clk 0:03:36]} 45. Kf1 {[%clk 0:01:53.2]} 45...
b1=R# {[%clk 0:03:33.9]} 0-1

[Event "Live Chess"]
[Site "Chess.com"]
[Date "2023.05.21"]
[Round "-"]
[White "grillage"]
[Black "LanceMaster23"]
[Result "0-1"]
[WhiteElo "1783"]
[BlackElo "1962"]
[TimeControl "300"]
[EndTime "7:12:56 PDT"]
[Termination "LanceMaster23 won by resignation"]

1. d4 {[%clk 0:04:59.3]} 1... Nf6 {[%clk 0:04:58.8]} 2. Nc3 {[%clk 0:04:57.6]}
2... d5 {[%clk 0:04:57.9]} 3. Bf4 {[%clk 0:04:56.1]} 3... Bf5 {[%clk 0:04:57.5]}
4. e3 {[%clk 0:04:53.9]} 4... e6 {[%clk 0:04:56.9]} 5. Nf3 {[%clk 0:04:51.6]}
5... c6 {[%clk 0:04:56.4]} 6. Bd3 {[%clk 0:04:50.7]} 6... Bg6 {[%clk 0:04:55.6]}
7. Ne5 {[%clk 0:04:39.2]} 7... Nbd7 {[%clk 0:04:54.4]} 8. f3 {[%clk 0:04:31.4]}
8... Be7 {[%clk 0:04:47.2]} 9. g4 {[%clk 0:04:27.4]} 9... Nxe5 {[%clk
0:04:43.3]} 10. Bxe5 {[%clk 0:04:20.9]} 10... Bxd3 {[%clk 0:04:37.2]} 11. Qxd3
{[%clk 0:04:16.5]} 11... h6 {[%clk 0:04:36.7]} 12. h4 {[%clk 0:04:11.3]} 12...
Bd6 {[%clk 0:04:19.9]} 13. Bxd6 {[%clk 0:04:03.1]} 13... Qxd6 {[%clk 0:04:19.8]}
14. O-O-O {[%clk 0:04:00.2]} 14... O-O-O {[%clk 0:04:18.7]} 15. g5 {[%clk
0:03:50.4]} 15... hxg5 {[%clk 0:04:18.6]} 16. hxg5 {[%clk 0:03:49.4]} 16... Nd7
{[%clk 0:04:10.2]} 17. f4 {[%clk 0:03:44.2]} 17... f6 {[%clk 0:04:08.2]} 18. Qg6
{[%clk 0:03:40.4]} 18... Qe7 {[%clk 0:03:57]} 19. Rh7 {[%clk 0:03:32.1]} 19...
Rxh7 {[%clk 0:03:55.8]} 20. Qxh7 {[%clk 0:03:31.4]} 20... fxg5 {[%clk
0:03:55.3]} 21. Rg1 {[%clk 0:03:27.2]} 21... gxf4 {[%clk 0:03:52.8]} 22. Rxg7
{[%clk 0:03:25.8]} 22... Qd6 {[%clk 0:03:48]} 23. Qh6 {[%clk 0:02:53.3]} 23...
fxe3 {[%clk 0:03:25]} 24. Qxe3 {[%clk 0:02:50.3]} 24... e5 {[%clk 0:03:24.3]}
25. dxe5 {[%clk 0:02:42.9]} 25... Qxe5 {[%clk 0:03:22.8]} 26. Qh3 {[%clk
0:02:37.2]} 26... Qxg7 {[%clk 0:03:18]} 0-1

[Event "Live Chess"]
[Site "Chess.com"]
[Date "2023.05.21"]
[Round "-"]
[White "gmnorfolk"]
[Black "FlyingChessKestrel13"]
[Result "0-1"]
[WhiteElo "2129"]
[BlackElo "2071"]
[TimeControl "300"]
[EndTime "7:13:01 PDT"]
[Termination "FlyingChessKestrel13 won by resignation"]

1. d4 {[%clk 0:04:58.5]} 1... Nf6 {[%clk 0:04:58.4]} 2. c4 {[%clk 0:04:54.9]}
2... e6 {[%clk 0:04:57.6]} 3. Nc3 {[%clk 0:04:53.2]} 3... d5 {[%clk 0:04:56.5]}
4. cxd5 {[%clk 0:04:50.1]} 4... exd5 {[%clk 0:04:55.6]} 5. Bg5 {[%clk
0:04:49.6]} 5... c6 {[%clk 0:04:54.6]} 6. e3 {[%clk 0:04:49.1]} 6... Bf5 {[%clk
0:04:52.9]} 7. Qf3 {[%clk 0:04:48]} 7... Bg6 {[%clk 0:04:48.6]} 8. Bxf6 {[%clk
0:04:47.2]} 8... Qxf6 {[%clk 0:04:48]} 9. Qxf6 {[%clk 0:04:46.2]} 9... gxf6
{[%clk 0:04:47.7]} 10. Nge2 {[%clk 0:04:44.9]} 10... Nd7 {[%clk 0:04:45.7]} 11.
Ng3 {[%clk 0:04:43.4]} 11... Bd6 {[%clk 0:04:43.9]} 12. Be2 {[%clk 0:04:40.7]}
12... O-O-O {[%clk 0:04:40.4]} 13. O-O {[%clk 0:04:38.3]} 13... h5 {[%clk
0:04:35.8]} 14. h4 {[%clk 0:04:34.9]} 14... Rde8 {[%clk 0:04:28.5]} 15. Rac1
{[%clk 0:04:25.2]} 15... Kb8 {[%clk 0:04:26.5]} 16. Nh1 {[%clk 0:04:18]} 16...
f5 {[%clk 0:04:23.8]} 17. g3 {[%clk 0:04:16.9]} 17... Nf6 {[%clk 0:04:19.8]} 18.
Bd3 {[%clk 0:04:15.1]} 18... Ne4 {[%clk 0:04:18.5]} 19. Kg2 {[%clk 0:04:04]}
19... f4 {[%clk 0:04:00.9]} 20. Bxe4 {[%clk 0:03:59.8]} 20... Bxe4+ {[%clk
0:03:50.5]} 21. Nxe4 {[%clk 0:03:57.7]} 21... dxe4 {[%clk 0:03:50.1]} 22. gxf4
{[%clk 0:03:53.4]} 22... Rhg8+ {[%clk 0:03:48]} 23. Ng3 {[%clk 0:03:52.7]} 23...
Rg4 {[%clk 0:03:46.7]} 24. Rh1 {[%clk 0:03:43.3]} 24... Be7 {[%clk 0:03:41.1]}
25. Kf1 {[%clk 0:03:42.1]} 25... Rxh4 {[%clk 0:03:19.3]} 26. Rxh4 {[%clk
0:03:31.5]} 26... Bxh4 {[%clk 0:03:17.9]} 27. Nxh5 {[%clk 0:03:29.9]} 27... Rh8
{[%clk 0:03:14.4]} 28. Ng7 {[%clk 0:03:24.8]} 28... Bf6 {[%clk 0:03:12.1]} 0-1

[Event "Live Chess"]
[Site "Chess.com"]
[Date "2023.05.21"]
[Round "-"]
[White "NateSolon"]
[Black "LiamClery2020"]
[Result "1-0"]
[WhiteElo "2643"]
[BlackElo "1961"]
[TimeControl "300"]
[EndTime "7:13:14 PDT"]
[Termination "NateSolon won by resignation"]

1. d4 {[%clk 0:04:59.2]} 1... Nf6 {[%clk 0:04:59.1]} 2. Nc3 {[%clk 0:04:58]}
2... d6 {[%clk 0:04:57.3]} 3. e4 {[%clk 0:04:57]} 3... Nbd7 {[%clk 0:04:55.7]}
4. f4 {[%clk 0:04:55.9]} 4... g6 {[%clk 0:04:49.6]} 5. e5 {[%clk 0:04:54.5]}
5... dxe5 {[%clk 0:04:47.3]} 6. fxe5 {[%clk 0:04:53]} 6... Ng8 {[%clk
0:04:43.3]} 7. Nf3 {[%clk 0:04:51.4]} 7... e6 {[%clk 0:04:42.6]} 8. Ne4 {[%clk
0:04:42.1]} 8... Bg7 {[%clk 0:04:41.1]} 9. Bc4 {[%clk 0:04:38.8]} 9... Nb6
{[%clk 0:04:38.6]} 10. Bb3 {[%clk 0:04:36.8]} 10... f5 {[%clk 0:04:36.5]} 11.
exf6 {[%clk 0:04:28.2]} 11... Nxf6 {[%clk 0:04:35.5]} 12. Neg5 {[%clk
0:04:25.4]} 12... O-O {[%clk 0:04:30.7]} 13. O-O {[%clk 0:04:20.2]} 13... Re8
{[%clk 0:04:26.6]} 14. Ne5 {[%clk 0:04:09.2]} 14... h6 {[%clk 0:04:20.2]} 15.
Ngf7 {[%clk 0:04:07.4]} 15... Qe7 {[%clk 0:04:15.7]} 16. Nxh6+ {[%clk
0:04:00.9]} 16... Bxh6 {[%clk 0:04:11.2]} 17. Bxh6 {[%clk 0:04:00.8]} 17... Nbd5
{[%clk 0:04:07.4]} 18. Bg5 {[%clk 0:03:53.4]} 18... Rf8 {[%clk 0:04:03.4]} 19.
c4 {[%clk 0:03:31.9]} 1-0

[Event "Live Chess"]
[Site "Chess.com"]
[Date "2023.05.21"]
[Round "-"]
[White "davigator"]
[Black "Singapourfeuj"]
[Result "0-1"]
[WhiteElo "2295"]
[BlackElo "2207"]
[TimeControl "300"]
[EndTime "7:13:47 PDT"]
[Termination "Singapourfeuj won by resignation"]

1. e4 {[%clk 0:04:58.7]} 1... c5 {[%clk 0:04:57.8]} 2. Nf3 {[%clk 0:04:57.2]}
2... d6 {[%clk 0:04:56.5]} 3. d4 {[%clk 0:04:56.4]} 3... cxd4 {[%clk 0:04:55.6]}
4. Nxd4 {[%clk 0:04:56.2]} 4... Nf6 {[%clk 0:04:54.3]} 5. Nc3 {[%clk 0:04:55.7]}
5... a6 {[%clk 0:04:53.2]} 6. Bg5 {[%clk 0:04:54.3]} 6... Nbd7 {[%clk
0:04:51.4]} 7. f3 {[%clk 0:04:53.3]} 7... Qc7 {[%clk 0:04:50.4]} 8. Qd2 {[%clk
0:04:51.4]} 8... h6 {[%clk 0:04:49.6]} 9. Be3 {[%clk 0:04:49.9]} 9... e5 {[%clk
0:04:48.6]} 10. Nb3 {[%clk 0:04:43.6]} 10... b5 {[%clk 0:04:47.3]} 11. O-O-O
{[%clk 0:04:42.6]} 11... b4 {[%clk 0:04:17.8]} 12. Nd5 {[%clk 0:04:37.6]} 12...
Nxd5 {[%clk 0:04:16.7]} 13. Qxd5 {[%clk 0:04:30.4]} 13... Bb7 {[%clk 0:04:15]}
14. Qd2 {[%clk 0:04:27.2]} 14... Nc5 {[%clk 0:04:07.6]} 15. Nxc5 {[%clk
0:04:21.8]} 15... dxc5 {[%clk 0:04:06.4]} 16. Bc4 {[%clk 0:04:21.5]} 16... Be7
{[%clk 0:04:03]} 17. h4 {[%clk 0:04:14.8]} 17... Rd8 {[%clk 0:04:01.1]} 18. Qf2
{[%clk 0:04:13.2]} 18... Rxd1+ {[%clk 0:03:55.5]} 19. Rxd1 {[%clk 0:04:10.6]}
19... O-O {[%clk 0:03:50.8]} 20. g4 {[%clk 0:04:10.1]} 20... Bc6 {[%clk
0:03:47]} 21. g5 {[%clk 0:04:07.3]} 21... h5 {[%clk 0:03:45]} 22. Bxa6 {[%clk
0:04:02]} 22... g6 {[%clk 0:03:36.2]} 23. Bc4 {[%clk 0:04:00.1]} 23... Qa5
{[%clk 0:03:28.1]} 24. f4 {[%clk 0:03:53]} 24... exf4 {[%clk 0:03:25.5]} 25.
Qxf4 {[%clk 0:03:51.6]} 25... Bb5 {[%clk 0:03:23.9]} 26. Bxb5 {[%clk 0:03:47.9]}
26... Qxb5 {[%clk 0:03:22.9]} 27. Qe5 {[%clk 0:03:41.1]} 27... Re8 {[%clk
0:03:18]} 28. Qc7 {[%clk 0:03:33.6]} 28... Bf8 {[%clk 0:03:15.2]} 29. e5 {[%clk
0:03:31.1]} 29... Re7 {[%clk 0:03:12.3]} 30. Qc8 {[%clk 0:03:23.5]} 30... Re8
{[%clk 0:03:08.8]} 31. Qc7 {[%clk 0:03:08.9]} 31... Re7 {[%clk 0:02:59.7]} 32.
Qd6 {[%clk 0:02:58.4]} 32... Re6 {[%clk 0:02:55]} 33. Qd5 {[%clk 0:02:56]} 33...
Qe2 {[%clk 0:02:50.9]} 34. Bf4 {[%clk 0:02:40.5]} 34... Qg4 {[%clk 0:02:43.1]}
35. Rf1 {[%clk 0:02:24.9]} 35... Qxh4 {[%clk 0:02:40.3]} 36. Qd7 {[%clk
0:02:17.5]} 36... Re7 {[%clk 0:02:36.6]} 37. Qd8 {[%clk 0:02:12.8]} 37... Qh3
{[%clk 0:02:33.9]} 38. Re1 {[%clk 0:02:05.4]} 38... Rd7 {[%clk 0:02:30.5]} 39.
Qf6 {[%clk 0:01:59]} 39... Bg7 {[%clk 0:02:27.4]} 40. Qc6 {[%clk 0:01:54.2]}
40... Qf5 {[%clk 0:02:24.9]} 41. Bd2 {[%clk 0:01:48.3]} 41... Re7 {[%clk
0:02:10.4]} 42. Qxc5 {[%clk 0:01:43.6]} 42... Rxe5 {[%clk 0:02:08.9]} 43. Qxb4
{[%clk 0:01:42.1]} 43... Rxe1+ {[%clk 0:02:05.7]} 44. Bxe1 {[%clk 0:01:41.7]}
44... Qxg5+ {[%clk 0:02:04.8]} 45. Kd1 {[%clk 0:01:37.9]} 45... Qg4+ {[%clk
0:02:02.9]} 46. Kd2 {[%clk 0:01:30.6]} 46... Qxb4+ {[%clk 0:01:59.2]} 47. Kd1
{[%clk 0:01:27.4]} 47... Qg4+ {[%clk 0:01:57.6]} 48. Kd2 {[%clk 0:01:26.2]}
48... Bh6+ {[%clk 0:01:57]} 49. Kd3 {[%clk 0:01:25.2]} 49... h4 {[%clk
0:01:56.1]} 50. c4 {[%clk 0:01:23.2]} 50... Qf3+ {[%clk 0:01:53]} 51. Kc2 {[%clk
0:01:21]} 51... Qe2+ {[%clk 0:01:51]} 52. Kb3 {[%clk 0:01:20.6]} 52... Qxe1
{[%clk 0:01:49.8]} 53. c5 {[%clk 0:01:20.5]} 53... h3 {[%clk 0:01:47.6]} 54. c6
{[%clk 0:01:19]} 54... Qc1 {[%clk 0:01:46.5]} 0-1

[Event "Live Chess"]
[Site "Chess.com"]
[Date "2023.05.21"]
[Round "-"]
[White "SimpleHarmonic1"]
[Black "GEMdzq"]
[Result "0-1"]
[WhiteElo "2041"]
[BlackElo "2236"]
[TimeControl "300"]
[EndTime "7:13:51 PDT"]
[Termination "GEMdzq won on time"]

1. d4 {[%clk 0:04:58.2]} 1... Nf6 {[%clk 0:04:58.3]} 2. c4 {[%clk 0:04:57.1]}
2... e6 {[%clk 0:04:57.6]} 3. Nc3 {[%clk 0:04:56.4]} 3... c5 {[%clk 0:04:57.5]}
4. d5 {[%clk 0:04:55.2]} 4... exd5 {[%clk 0:04:57.4]} 5. cxd5 {[%clk 0:04:54.3]}
5... d6 {[%clk 0:04:57.2]} 6. Nf3 {[%clk 0:04:53.3]} 6... g6 {[%clk 0:04:56.9]}
7. Nd2 {[%clk 0:04:52.3]} 7... Bg7 {[%clk 0:04:56.1]} 8. Nc4 {[%clk 0:04:52]}
8... O-O {[%clk 0:04:53.4]} 9. Bf4 {[%clk 0:04:51.6]} 9... Ne8 {[%clk
0:04:52.2]} 10. Qd2 {[%clk 0:04:47.5]} 10... a6 {[%clk 0:04:47]} 11. a4 {[%clk
0:04:45.7]} 11... Qc7 {[%clk 0:04:34.2]} 12. h4 {[%clk 0:04:37.7]} 12... h5
{[%clk 0:04:30.6]} 13. e3 {[%clk 0:04:18.9]} 13... Nd7 {[%clk 0:04:28]} 14. Ne4
{[%clk 0:04:02.5]} 14... Ne5 {[%clk 0:04:12.1]} 15. Nxe5 {[%clk 0:03:55.8]}
15... dxe5 {[%clk 0:04:12]} 16. Bg3 {[%clk 0:03:46.4]} 16... Nd6 {[%clk
0:04:08.4]} 17. Nc3 {[%clk 0:03:29]} 17... Bd7 {[%clk 0:04:02.5]} 18. Be2 {[%clk
0:03:20.8]} 18... b5 {[%clk 0:04:00.7]} 19. O-O {[%clk 0:03:13.8]} 19... b4
{[%clk 0:03:56.9]} 20. Nb1 {[%clk 0:03:09.4]} 20... Ne4 {[%clk 0:03:44.4]} 21.
Qc2 {[%clk 0:03:07.7]} 21... Nxg3 {[%clk 0:03:38.2]} 22. fxg3 {[%clk 0:03:05.9]}
22... Rab8 {[%clk 0:03:31.4]} 23. Nd2 {[%clk 0:03:03.1]} 23... Bh6 {[%clk
0:03:21.4]} 24. Nc4 {[%clk 0:02:56.9]} 24... b3 {[%clk 0:03:17.7]} 25. Qc3
{[%clk 0:02:48.3]} 25... Bg7 {[%clk 0:03:01.6]} 26. e4 {[%clk 0:02:43.8]} 26...
Rb4 {[%clk 0:02:59.7]} 27. a5 {[%clk 0:02:25]} 27... Bb5 {[%clk 0:02:52.8]} 28.
Rf2 {[%clk 0:02:19.7]} 28... Bxc4 {[%clk 0:02:26.5]} 29. Bxc4 {[%clk 0:02:19.6]}
29... Qd6 {[%clk 0:02:23.9]} 30. Raf1 {[%clk 0:02:06.2]} 30... Bh8 {[%clk
0:02:01.1]} 31. Kh2 {[%clk 0:02:01.1]} 31... Bg7 {[%clk 0:01:59.6]} 32. Kg1
{[%clk 0:01:46.5]} 32... f5 {[%clk 0:01:36.6]} 33. exf5 {[%clk 0:01:42.7]} 33...
e4 {[%clk 0:01:33.6]} 34. f6 {[%clk 0:01:22.9]} 34... Bh6 {[%clk 0:00:50.6]} 35.
f7+ {[%clk 0:01:09.4]} 35... Kh7 {[%clk 0:00:49.7]} 36. Rf6 {[%clk 0:00:44.7]}
36... Qe7 {[%clk 0:00:40.7]} 37. Re6 {[%clk 0:00:27.6]} 37... Qd8 {[%clk
0:00:31.4]} 38. Rff6 {[%clk 0:00:19.7]} 38... Bg7 {[%clk 0:00:26.6]} 39. Be2
{[%clk 0:00:04.2]} 39... Bxf6 {[%clk 0:00:21.1]} 40. Rxf6 {[%clk 0:00:04.1]}
40... Rd4 {[%clk 0:00:19.2]} 0-1

[Event "Live Chess"]
[Site "Chess.com"]
[Date "2023.05.21"]
[Round "-"]
[White "Doge_Dandolo"]
[Black "Bob2pen"]
[Result "0-1"]
[WhiteElo "1878"]
[BlackElo "1841"]
[TimeControl "300"]
[EndTime "7:13:51 PDT"]
[Termination "Bob2pen won by resignation"]

1. Nf3 {[%clk 0:04:57.7]} 1... Nf6 {[%clk 0:04:58.1]} 2. c4 {[%clk 0:04:54.1]}
2... g6 {[%clk 0:04:56]} 3. Nc3 {[%clk 0:04:48.4]} 3... Bg7 {[%clk 0:04:54.7]}
4. e4 {[%clk 0:04:42]} 4... d6 {[%clk 0:04:53.7]} 5. d4 {[%clk 0:04:38.3]} 5...
O-O {[%clk 0:04:50.3]} 6. Be2 {[%clk 0:04:34.1]} 6... c5 {[%clk 0:04:47.6]} 7.
h3 {[%clk 0:04:30.5]} 7... Nc6 {[%clk 0:04:46.1]} 8. d5 {[%clk 0:04:27.9]} 8...
Nb4 {[%clk 0:04:43.8]} 9. a3 {[%clk 0:04:21.7]} 9... Na6 {[%clk 0:04:42.4]} 10.
O-O {[%clk 0:04:18.9]} 10... Nc7 {[%clk 0:04:30.2]} 11. a4 {[%clk 0:04:07.4]}
11... a6 {[%clk 0:04:28.3]} 12. a5 {[%clk 0:04:04.7]} 12... e6 {[%clk
0:04:22.5]} 13. Nd2 {[%clk 0:03:55.3]} 13... exd5 {[%clk 0:04:20.9]} 14. cxd5
{[%clk 0:03:53.1]} 14... Bd7 {[%clk 0:04:18.9]} 15. Re1 {[%clk 0:03:49.6]} 15...
Nb5 {[%clk 0:04:15.3]} 16. Nc4 {[%clk 0:03:40.6]} 16... Nxc3 {[%clk 0:04:12.1]}
17. bxc3 {[%clk 0:03:38]} 17... Bb5 {[%clk 0:04:10.8]} 18. Ne3 {[%clk
0:03:29.2]} 18... Nxe4 {[%clk 0:04:05.3]} 19. Bxb5 {[%clk 0:03:27.3]} 19... axb5
{[%clk 0:03:57.5]} 20. Rb1 {[%clk 0:03:24.8]} 20... Nxc3 {[%clk 0:03:55.7]} 21.
Qc2 {[%clk 0:03:21.1]} 21... Nxb1 {[%clk 0:03:52.4]} 22. Qxb1 {[%clk 0:03:19.2]}
22... Qxa5 {[%clk 0:03:48]} 23. Bb2 {[%clk 0:03:16]} 23... Bxb2 {[%clk
0:03:45.3]} 24. Qxb2 {[%clk 0:03:14.9]} 24... Qxe1+ {[%clk 0:03:43.9]} 25. Kh2
{[%clk 0:03:13.3]} 25... Ra1 {[%clk 0:03:37]} 26. Ng4 {[%clk 0:03:10.9]} 26...
f6 {[%clk 0:03:25.2]} 27. Nxf6+ {[%clk 0:03:04.5]} 27... Rxf6 {[%clk 0:03:23.4]}
28. Qxf6 {[%clk 0:03:03.8]} 28... Qe5+ {[%clk 0:03:22.1]} 0-1

[Event "Live Chess"]
[Site "Chess.com"]
[Date "2023.05.21"]
[Round "-"]
[White "ClassyChameleon"]
[Black "WilliamofOrange16th"]
[Result "0-1"]
[WhiteElo "1083"]
[BlackElo "1865"]
[TimeControl "300"]
[EndTime "7:13:57 PDT"]
[Termination "WilliamofOrange16th won by checkmate"]

1. e4 {[%clk 0:04:56.8]} 1... d6 {[%clk 0:04:52.4]} 2. Nf3 {[%clk 0:04:52.9]}
2... Nf6 {[%clk 0:04:50.5]} 3. Nc3 {[%clk 0:04:51.4]} 3... e5 {[%clk 0:04:48.9]}
4. d4 {[%clk 0:04:49.2]} 4... Nbd7 {[%clk 0:04:48]} 5. d5 {[%clk 0:04:47.7]}
5... c6 {[%clk 0:04:45.8]} 6. Bc4 {[%clk 0:04:45.3]} 6... Be7 {[%clk 0:04:44.9]}
7. O-O {[%clk 0:04:40.5]} 7... O-O {[%clk 0:04:43.4]} 8. b4 {[%clk 0:04:33.5]}
8... cxd5 {[%clk 0:04:41.2]} 9. Nxd5 {[%clk 0:04:31.8]} 9... Nxe4 {[%clk
0:04:31.8]} 10. Nxe7+ {[%clk 0:04:29.7]} 10... Qxe7 {[%clk 0:04:31.5]} 11. Bd5
{[%clk 0:04:22.5]} 11... Nc3 {[%clk 0:04:29.5]} 12. Qd3 {[%clk 0:04:17.6]} 12...
Nxd5 {[%clk 0:04:28.2]} 13. Qxd5 {[%clk 0:04:16.9]} 13... Nf6 {[%clk 0:04:27.1]}
14. Qb3 {[%clk 0:04:12.8]} 14... Be6 {[%clk 0:04:24.5]} 15. c4 {[%clk
0:04:12.1]} 15... b5 {[%clk 0:04:23]} 16. Nd2 {[%clk 0:04:07.3]} 16... Rfc8
{[%clk 0:04:19.1]} 17. Qf3 {[%clk 0:03:49.9]} 17... bxc4 {[%clk 0:04:15.6]} 18.
Ba3 {[%clk 0:03:47.9]} 18... d5 {[%clk 0:04:09]} 19. Rac1 {[%clk 0:03:44.6]}
19... Rab8 {[%clk 0:03:59.7]} 20. Qg3 {[%clk 0:03:29.7]} 20... Bf5 {[%clk
0:03:54.3]} 21. f4 {[%clk 0:03:24.4]} 21... Bd3 {[%clk 0:03:47.7]} 22. Rfe1
{[%clk 0:03:13.1]} 22... e4 {[%clk 0:03:46.4]} 23. f5 {[%clk 0:03:08.3]} 23...
c3 {[%clk 0:03:44.9]} 24. Nb3 {[%clk 0:03:02.5]} 24... Qc7 {[%clk 0:03:37.7]}
25. Qxc7 {[%clk 0:02:54.2]} 25... Rxc7 {[%clk 0:03:37.6]} 26. Nd4 {[%clk
0:02:53.4]} 26... Rc4 {[%clk 0:03:31.3]} 27. Nb3 {[%clk 0:02:39.1]} 27... d4
{[%clk 0:03:28.5]} 28. Kf2 {[%clk 0:02:34.7]} 28... e3+ {[%clk 0:03:27.5]} 29.
Kf3 {[%clk 0:02:34]} 29... Be4+ {[%clk 0:03:26.6]} 30. Kf4 {[%clk 0:02:31.8]}
30... Bxg2 {[%clk 0:03:19.9]} 31. Ke5 {[%clk 0:02:27]} 31... Re8+ {[%clk
0:03:12.6]} 32. Kd6 {[%clk 0:02:23.9]} 32... Rc6# {[%clk 0:03:07.6]} 0-1

[Event "Live Chess"]
[Site "Chess.com"]
[Date "2023.05.21"]
[Round "-"]
[White "chessfiction"]
[Black "zdanevych"]
[Result "1-0"]
[WhiteElo "2307"]
[BlackElo "1500"]
[TimeControl "300"]
[EndTime "7:13:57 PDT"]
[Termination "chessfiction won by resignation"]

1. e4 {[%clk 0:04:59.4]} 1... c5 {[%clk 0:04:58.4]} 2. d4 {[%clk 0:04:58.8]}
2... cxd4 {[%clk 0:04:57.4]} 3. c3 {[%clk 0:04:58.7]} 3... dxc3 {[%clk
0:04:56.2]} 4. Nxc3 {[%clk 0:04:58.6]} 4... Nc6 {[%clk 0:04:55.6]} 5. Bg5 {[%clk
0:04:57.8]} 5... Nf6 {[%clk 0:04:53.4]} 6. Nf3 {[%clk 0:04:56]} 6... h6 {[%clk
0:04:51.8]} 7. Bxf6 {[%clk 0:04:54.7]} 7... gxf6 {[%clk 0:04:51.7]} 8. Bc4
{[%clk 0:04:52.6]} 8... e6 {[%clk 0:04:42]} 9. O-O {[%clk 0:04:49.2]} 9... Bg7
{[%clk 0:04:40.9]} 10. Nh4 {[%clk 0:04:47.4]} 10... O-O {[%clk 0:04:37.1]} 11.
Re1 {[%clk 0:04:44.5]} 11... a6 {[%clk 0:04:34.4]} 12. Re3 {[%clk 0:04:43.4]}
12... b5 {[%clk 0:04:33.8]} 13. Be2 {[%clk 0:04:41.9]} 13... Bb7 {[%clk
0:04:29]} 14. Rg3 {[%clk 0:04:40.8]} 14... Ne5 {[%clk 0:04:22.2]} 15. Qd2 {[%clk
0:04:37.5]} 15... Kh7 {[%clk 0:04:15.1]} 16. f4 {[%clk 0:04:33.9]} 16... Nc4
{[%clk 0:04:11.6]} 17. Bxc4 {[%clk 0:04:32]} 17... bxc4 {[%clk 0:04:11.5]} 18.
Rd1 {[%clk 0:04:27]} 18... d5 {[%clk 0:04:03.9]} 19. exd5 {[%clk 0:04:24.6]}
19... exd5 {[%clk 0:04:00.4]} 20. Qc2+ {[%clk 0:04:23.2]} 20... Kh8 {[%clk
0:03:57.5]} 21. Nf5 {[%clk 0:04:09.4]} 21... Rg8 {[%clk 0:03:50.2]} 22. Qe2
{[%clk 0:04:06]} 22... Bc8 {[%clk 0:03:33.5]} 23. Nxg7 {[%clk 0:04:00.8]} 23...
Rxg7 {[%clk 0:03:29.9]} 24. Rxg7 {[%clk 0:03:54.4]} 24... Kxg7 {[%clk 0:03:28]}
25. Rxd5 {[%clk 0:03:52.8]} 25... Qb6+ {[%clk 0:03:07.5]} 26. Qf2 {[%clk
0:03:51]} 26... Qxf2+ {[%clk 0:03:04.9]} 27. Kxf2 {[%clk 0:03:50.9]} 27... Be6
{[%clk 0:03:02.5]} 28. Rc5 {[%clk 0:03:49.3]} 28... Rc8 {[%clk 0:03:00.1]} 29.
Rxc8 {[%clk 0:03:47.5]} 29... Bxc8 {[%clk 0:02:59]} 30. Ke3 {[%clk 0:03:47.4]}
30... Kg6 {[%clk 0:02:49.5]} 31. Kd4 {[%clk 0:03:45.9]} 31... Be6 {[%clk
0:02:47.5]} 32. Ne4 {[%clk 0:03:36.7]} 32... f5 {[%clk 0:02:40.1]} 33. Nc5
{[%clk 0:03:34.7]} 33... Kh5 {[%clk 0:02:34.3]} 34. Nxe6 {[%clk 0:03:32.2]}
34... fxe6 {[%clk 0:02:33]} 35. Kxc4 {[%clk 0:03:31.2]} 35... Kg4 {[%clk
0:02:32.4]} 36. g3 {[%clk 0:03:27.5]} 36... Kh3 {[%clk 0:02:31.1]} 37. a4 {[%clk
0:03:25.6]} 37... Kxh2 {[%clk 0:02:29.6]} 38. b4 {[%clk 0:03:22.8]} 38... Kxg3
{[%clk 0:02:28.7]} 39. b5 {[%clk 0:03:22.3]} 39... h5 {[%clk 0:02:28.3]} 40.
bxa6 {[%clk 0:03:20.1]} 1-0